[Event "*** Titled Tuesday Blitz"]
[Site "Chess.com"]
[Date "2018.08.07"]
[Round "6"]
[White "murmah2003"]
[Black "ChessicallyInclined"]
[Result "1/2-1/2"]
[WhiteElo "2553"]
[BlackElo "2365"]
[TimeControl "180+2"]
[EndTime "14:22:46 PDT"]
[Termination "Game drawn by repetition"]

1. Nf3 {[%clk 0:03:01.9]} 1... d5 {[%clk 0:02:57.2]} 2. d4 {[%clk 0:03:01.7]}
2... e6 {[%clk 0:02:58.5]} 3. c4 {[%clk 0:03:02.5]} 3... Nf6 {[%clk 0:02:59.7]}
4. Nc3 {[%clk 0:03:03.8]} 4... Be7 {[%clk 0:02:59.6]} 5. Bf4 {[%clk 0:03:04.9]}
5... O-O {[%clk 0:02:59.5]} 6. e3 {[%clk 0:03:06.1]} 6... b6 {[%clk 0:03:00.7]}
7. cxd5 {[%clk 0:03:06.7]} 7... Nxd5 {[%clk 0:03:01.5]} 8. Nxd5 {[%clk
0:03:06.8]} 8... Qxd5 {[%clk 0:03:03.4]} 9. a3 {[%clk 0:03:07.8]} 9... Ba6
{[%clk 0:02:55.8]} 10. Bxa6 {[%clk 0:02:59.3]} 10... Nxa6 {[%clk 0:02:57.7]} 11.
O-O {[%clk 0:02:57.3]} 11... c5 {[%clk 0:02:54.6]} 12. Qa4 {[%clk 0:02:56.6]}
12... Qb7 {[%clk 0:02:54]} 13. Rac1 {[%clk 0:02:41.3]} 13... cxd4 {[%clk
0:02:36.6]} 14. Nxd4 {[%clk 0:02:39.6]} 14... Nc5 {[%clk 0:02:36.8]} 15. Qc6
{[%clk 0:02:36.7]} 15... Qxc6 {[%clk 0:02:30.1]} 16. Nxc6 {[%clk 0:02:38.2]}
16... Bf6 {[%clk 0:02:30.9]} 17. b4 {[%clk 0:02:10.1]} 17... Nd3 {[%clk
0:02:28.6]} 18. Rc2 {[%clk 0:02:08]} 18... Nxf4 {[%clk 0:02:19]} 19. exf4 {[%clk
0:02:09.9]} 19... g6 {[%clk 0:02:12]} 20. g3 {[%clk 0:02:09.1]} 20... h5 {[%clk
0:02:12.7]} 21. Rd1 {[%clk 0:02:08.7]} 21... Rfc8 {[%clk 0:02:02.7]} 22. Kg2
{[%clk 0:02:02.9]} 22... Rc7 {[%clk 0:02:00.2]} 23. Rdc1 {[%clk 0:01:50.8]}
23... b5 {[%clk 0:01:46.5]} 24. h4 {[%clk 0:01:31.7]} 24... Kg7 {[%clk
0:01:42.4]} 25. Ne5 {[%clk 0:01:14.3]} 25... Rxc2 {[%clk 0:01:36.8]} 26. Rxc2
{[%clk 0:01:16.2]} 26... a5 {[%clk 0:01:26.3]} 27. Rc5 {[%clk 0:01:06]} 27...
axb4 {[%clk 0:01:15]} 28. axb4 {[%clk 0:01:07.9]} 28... Ra2 {[%clk 0:01:02]} 29.
Rxb5 {[%clk 0:00:53.6]} 29... Rb2 {[%clk 0:01:01.4]} 30. Nc6 {[%clk 0:00:48.6]}
30... Bc3 {[%clk 0:00:52.1]} 31. Kf1 {[%clk 0:00:24.2]} 31... Kf6 {[%clk
0:00:39.2]} 32. Rb7 {[%clk 0:00:22.3]} 32... Kf5 {[%clk 0:00:26.4]} 33. Rxf7+
{[%clk 0:00:14.4]} 33... Ke4 {[%clk 0:00:26.5]} 34. Rd7 {[%clk 0:00:06.5]} 34...
Rc2 {[%clk 0:00:08.7]} 35. b5 {[%clk 0:00:06.4]} 35... Rb2 {[%clk 0:00:10.1]}
36. Kg2 {[%clk 0:00:04.5]} 36... Rxb5 {[%clk 0:00:10.3]} 37. Rd1 {[%clk
0:00:04.3]} 37... Bf6 {[%clk 0:00:08.1]} 38. Re1+ {[%clk 0:00:02.9]} 38... Kf5
{[%clk 0:00:09.5]} 39. Ne5 {[%clk 0:00:04.3]} 39... Bxe5 {[%clk 0:00:10]} 40.
fxe5 {[%clk 0:00:06.2]} 40... Rxe5 {[%clk 0:00:11.2]} 41. Ra1 {[%clk 0:00:08.1]}
41... Rd5 {[%clk 0:00:12.1]} 42. Ra8 {[%clk 0:00:08.1]} 42... Kf6 {[%clk
0:00:13]} 43. Rf8+ {[%clk 0:00:09.3]} 43... Kg7 {[%clk 0:00:13.7]} 44. Rf4
{[%clk 0:00:11.2]} 44... Rf5 {[%clk 0:00:11.3]} 45. Re4 {[%clk 0:00:11.8]} 45...
Kf6 {[%clk 0:00:12.3]} 46. Ra4 {[%clk 0:00:11]} 46... Rd5 {[%clk 0:00:13.3]} 47.
Ra7 {[%clk 0:00:11]} 47... e5 {[%clk 0:00:13.6]} 48. Kf3 {[%clk 0:00:10.6]}
48... Rd4 {[%clk 0:00:14.9]} 49. Ke3 {[%clk 0:00:10.9]} 49... Rb4 {[%clk
0:00:15.8]} 50. Ra6+ {[%clk 0:00:11]} 50... Kf5 {[%clk 0:00:16.8]} 51. Kf3
{[%clk 0:00:10.5]} 51... Rb3+ {[%clk 0:00:17.8]} 52. Kg2 {[%clk 0:00:11.6]}
52... Rc3 {[%clk 0:00:19.2]} 53. Rd6 {[%clk 0:00:11]} 53... g5 {[%clk
0:00:19.6]} 54. hxg5 {[%clk 0:00:05.8]} 54... Kxg5 {[%clk 0:00:20.7]} 55. Rd5
{[%clk 0:00:07.7]} 55... Kf6 {[%clk 0:00:19.1]} 56. Rd6+ {[%clk 0:00:08]} 56...
Kf5 {[%clk 0:00:20.1]} 57. Rd8 {[%clk 0:00:08.7]} 57... Rc2 {[%clk 0:00:18.8]}
58. Rh8 {[%clk 0:00:06.1]} 58... Kg5 {[%clk 0:00:19.6]} 59. Rg8+ {[%clk
0:00:06.6]} 59... Kf5 {[%clk 0:00:20.4]} 60. Rh8 {[%clk 0:00:08.5]} 60... Kg5
{[%clk 0:00:21.6]} 61. Re8 {[%clk 0:00:09.2]} 61... Kf5 {[%clk 0:00:22.7]} 62.
Kf3 {[%clk 0:00:10.1]} 62... Rc3+ {[%clk 0:00:23.1]} 63. Kg2 {[%clk 0:00:09.9]}
63... Kf6 {[%clk 0:00:21.5]} 64. Kh3 {[%clk 0:00:09.8]} 64... Rc2 {[%clk
0:00:22.7]} 65. Kh4 {[%clk 0:00:06.3]} 65... Kf7 {[%clk 0:00:20.3]} 66. Rxe5
{[%clk 0:00:06.4]} 66... Rxf2 {[%clk 0:00:21.6]} 67. Kxh5 {[%clk 0:00:07.4]}
67... Kf6 {[%clk 0:00:20.3]} 68. Ra5 {[%clk 0:00:07.1]} 68... Rh2+ {[%clk
0:00:20.8]} 69. Kg4 {[%clk 0:00:07.7]} 69... Kg7 {[%clk 0:00:22.2]} 70. Kg5
{[%clk 0:00:07.8]} 70... Rf2 {[%clk 0:00:22.2]} 71. Ra7+ {[%clk 0:00:06.3]}
71... Kg8 {[%clk 0:00:23.4]} 72. Kg6 {[%clk 0:00:05.4]} 72... Rf8 {[%clk
0:00:23.7]} 73. g4 {[%clk 0:00:06.2]} 73... Re8 {[%clk 0:00:23.5]} 74. Ra6
{[%clk 0:00:07.2]} 74... Rf8 {[%clk 0:00:24.2]} 75. g5 {[%clk 0:00:07.8]} 75...
Rb8 {[%clk 0:00:24.2]} 76. Rf6 {[%clk 0:00:05.5]} 76... Ra8 {[%clk 0:00:24.3]}
77. Kh6 {[%clk 0:00:04.2]} 77... Ra1 {[%clk 0:00:23.3]} 78. Rb6 {[%clk
0:00:04.6]} 78... Ra8 {[%clk 0:00:23.9]} 79. g6 {[%clk 0:00:03.9]} 79... Rc8
{[%clk 0:00:24.8]} 80. Rb7 {[%clk 0:00:04.9]} 80... Ra8 {[%clk 0:00:24.7]} 81.
Rf7 {[%clk 0:00:04.9]} 81... Rb8 {[%clk 0:00:25.1]} 82. Rg7+ {[%clk 0:00:05.3]}
82... Kh8 {[%clk 0:00:25.9]} 83. Rf7 {[%clk 0:00:06.5]} 83... Kg8 {[%clk
0:00:26.4]} 84. Rd7 {[%clk 0:00:07.1]} 84... Ra8 {[%clk 0:00:26.4]} 85. Rd5
{[%clk 0:00:07.5]} 85... Rb8 {[%clk 0:00:25.8]} 86. Ra5 {[%clk 0:00:07.1]} 86...
Rc8 {[%clk 0:00:25.8]} 87. Rf5 {[%clk 0:00:07.7]} 87... Rb8 {[%clk 0:00:26.7]}
88. Re5 {[%clk 0:00:08.2]} 88... Ra8 {[%clk 0:00:27.7]} 89. Re6 {[%clk 0:00:09]}
89... Rc8 {[%clk 0:00:28.2]} 90. g7 {[%clk 0:00:09.9]} 90... Ra8 {[%clk
0:00:27.5]} 91. Rf6 {[%clk 0:00:11.1]} 91... Rc8 {[%clk 0:00:27.7]} 92. Rb6
{[%clk 0:00:09.2]} 92... Ra8 {[%clk 0:00:28.5]} 93. Rf6 {[%clk 0:00:05.6]} 93...
Rc8 {[%clk 0:00:29.4]} 94. Kg6 {[%clk 0:00:06.8]} 94... Ra8 {[%clk 0:00:29.9]}
95. Kh6 {[%clk 0:00:06.2]} 95... Rc8 {[%clk 0:00:30.8]} 96. Kg6 {[%clk
0:00:06.7]} 96... Ra8 {[%clk 0:00:31.8]} 97. Rb6 {[%clk 0:00:07.4]} 97... Rc8
{[%clk 0:00:32.6]} 98. Ra6 {[%clk 0:00:07.8]} 98... Rb8 {[%clk 0:00:33.4]} 99.
Rf6 {[%clk 0:00:08]} 99... Rc8 {[%clk 0:00:34.1]} 100. Re6 {[%clk 0:00:07.9]}
100... Rb8 {[%clk 0:00:34.9]} 101. Rf6 {[%clk 0:00:08.9]} 101... Rc8 {[%clk
0:00:36]} 102. Rf7 {[%clk 0:00:10]} 102... Rc6+ {[%clk 0:00:35.8]} 103. Rf6
{[%clk 0:00:11.5]} 103... Rc8 {[%clk 0:00:36.5]} 1/2-1/2

[Event "*** Titled Tuesday Blitz"]
[Site "Chess.com"]
[Date "2018.08.07"]
[Round "7"]
[White "AquivaRubinstein"]
[Black "josiwales"]
[Result "1/2-1/2"]
[WhiteElo "2407"]
[BlackElo "2516"]
[TimeControl "180+2"]
[EndTime "14:27:53 PDT"]
[Termination "Game drawn by agreement"]

1. d4 {[%clk 0:03:01.9]} 1... d5 {[%clk 0:03:00.7]} 2. c4 {[%clk 0:03:02.9]}
2... c6 {[%clk 0:03:02]} 3. Nf3 {[%clk 0:03:03.1]} 3... Nf6 {[%clk 0:02:59.8]}
4. Nc3 {[%clk 0:03:04]} 4... dxc4 {[%clk 0:03:00.1]} 5. a4 {[%clk 0:03:04.3]}
5... Bf5 {[%clk 0:03:01.3]} 6. Ne5 {[%clk 0:03:05.3]} 6... e6 {[%clk 0:02:58.8]}
7. f3 {[%clk 0:03:05.4]} 7... Bb4 {[%clk 0:02:54.8]} 8. e4 {[%clk 0:03:02.7]}
8... Bxe4 {[%clk 0:02:54.4]} 9. fxe4 {[%clk 0:03:03.4]} 9... Nxe4 {[%clk
0:02:56.3]} 10. Qf3 {[%clk 0:02:54.5]} 10... Qxd4 {[%clk 0:02:47.1]} 11. Qxf7+
{[%clk 0:02:54.8]} 11... Kd8 {[%clk 0:02:48.1]} 12. Bg5+ {[%clk 0:02:55.5]}
12... Nxg5 {[%clk 0:02:34.5]} 13. Qxg7 {[%clk 0:02:56.6]} 13... Bxc3+ {[%clk
0:02:32.6]} 14. bxc3 {[%clk 0:02:57.4]} 14... Qxc3+ {[%clk 0:02:34.5]} 15. Ke2
{[%clk 0:02:55.7]} 15... Qc2+ {[%clk 0:02:20.7]} 16. Ke1 {[%clk 0:02:50.1]}
16... Qc3+ {[%clk 0:02:19.8]} 17. Ke2 {[%clk 0:02:43.8]} 17... Qc2+ {[%clk
0:02:06.6]} 18. Ke1 {[%clk 0:02:43.1]} 1/2-1/2

[Event "*** Titled Tuesday Blitz"]
[Site "Chess.com"]
[Date "2018.08.07"]
[Round "7"]
[White "francogreek"]
[Black "2Tilted"]
[Result "1-0"]
[WhiteElo "2420"]
[BlackElo "2334"]
[TimeControl "180+2"]
[EndTime "14:28:05 PDT"]
[Termination "francogreek won by resignation"]

1. e4 {[%clk 0:03:01.9]} 1... c5 {[%clk 0:03:00.2]} 2. a3 {[%clk 0:03:01.9]}
2... d5 {[%clk 0:02:59.8]} 3. exd5 {[%clk 0:03:02.5]} 3... Qxd5 {[%clk
0:03:01.7]} 4. Nc3 {[%clk 0:03:04.2]} 4... Qe5+ {[%clk 0:03:00.6]} 5. Be2 {[%clk
0:03:04.5]} 5... Bg4 {[%clk 0:02:59.1]} 6. d3 {[%clk 0:03:01.9]} 6... Bxe2
{[%clk 0:02:58.7]} 7. Ngxe2 {[%clk 0:02:57]} 7... a6 {[%clk 0:02:57.3]} 8. Bf4
{[%clk 0:02:57.2]} 8... Qe6 {[%clk 0:02:56.8]} 9. O-O {[%clk 0:02:57]} 9... Nc6
{[%clk 0:02:56.9]} 10. Re1 {[%clk 0:02:57.9]} 10... Qd7 {[%clk 0:02:50.7]} 11.
Na4 {[%clk 0:02:57.5]} 11... Qf5 {[%clk 0:02:43.2]} 12. Qd2 {[%clk 0:02:46.5]}
12... Rd8 {[%clk 0:02:35.3]} 13. Ng3 {[%clk 0:02:47.2]} 13... Qg6 {[%clk
0:02:29.6]} 14. Nxc5 {[%clk 0:02:46.4]} 14... e6 {[%clk 0:02:14.5]} 15. Nxb7
{[%clk 0:02:47]} 15... Ra8 {[%clk 0:02:13]} 16. Qc3 {[%clk 0:02:39.2]} 16... Rc8
{[%clk 0:02:06.9]} 17. Ne4 {[%clk 0:02:35.3]} 17... Be7 {[%clk 0:02:02.2]} 18.
Ned6+ {[%clk 0:02:36]} 1-0

[Event "*** Titled Tuesday Blitz"]
[Site "Chess.com"]
[Date "2018.08.07"]
[Round "7"]
[White "NateSolon"]
[Black "DoctorSocrates"]
[Result "1-0"]
[WhiteElo "2527"]
[BlackElo "2551"]
[TimeControl "180+2"]
[EndTime "14:29:29 PDT"]
[Termination "NateSolon won by resignation"]

1. d4 {[%clk 0:03:01.9]} 1... g6 {[%clk 0:02:59.4]} 2. e4 {[%clk 0:03:02.2]}
2... Bg7 {[%clk 0:03:01.3]} 3. Nc3 {[%clk 0:03:02.4]} 3... d6 {[%clk 0:02:46.3]}
4. f4 {[%clk 0:03:01.9]} 4... c6 {[%clk 0:02:46.8]} 5. Nf3 {[%clk 0:03:01.1]}
5... d5 {[%clk 0:02:47.9]} 6. e5 {[%clk 0:02:59.2]} 6... Bg4 {[%clk 0:02:48]} 7.
h3 {[%clk 0:02:57.8]} 7... Bxf3 {[%clk 0:02:47.9]} 8. Qxf3 {[%clk 0:02:59.7]}
8... f5 {[%clk 0:02:49.4]} 9. exf6 {[%clk 0:02:43.5]} 9... Nxf6 {[%clk
0:02:48.3]} 10. Bd3 {[%clk 0:02:44.2]} 10... O-O {[%clk 0:02:47.8]} 11. Ne2
{[%clk 0:02:37.8]} 11... e6 {[%clk 0:02:45.1]} 12. O-O {[%clk 0:02:36.7]} 12...
Qd6 {[%clk 0:02:42.3]} 13. Be3 {[%clk 0:02:24.3]} 13... Nbd7 {[%clk 0:02:36.7]}
14. c3 {[%clk 0:02:23.8]} 14... c5 {[%clk 0:02:37.5]} 15. Kh1 {[%clk 0:02:20.1]}
15... cxd4 {[%clk 0:02:33.5]} 16. Bxd4 {[%clk 0:02:17.7]} 16... Nc5 {[%clk
0:02:33]} 17. Rae1 {[%clk 0:02:11.5]} 17... Nxd3 {[%clk 0:02:33]} 18. Qxd3
{[%clk 0:02:12.2]} 18... Ne4 {[%clk 0:02:34.2]} 19. Bxg7 {[%clk 0:02:10.8]}
19... Kxg7 {[%clk 0:02:36.1]} 20. Nd4 {[%clk 0:02:08.4]} 20... Rae8 {[%clk
0:02:29.9]} 21. Rxe4 {[%clk 0:02:08.3]} 21... dxe4 {[%clk 0:02:02.1]} 22. Nf5+
{[%clk 0:02:08.9]} 22... exf5 {[%clk 0:02:04]} 23. Qxd6 {[%clk 0:02:09.4]} 23...
Rf7 {[%clk 0:02:05.7]} 24. Qd4+ {[%clk 0:02:03.5]} 24... Kg8 {[%clk 0:02:05]}
25. Qxa7 {[%clk 0:02:03.7]} 25... e3 {[%clk 0:02:05.2]} 26. Re1 {[%clk 0:02:04]}
26... e2 {[%clk 0:02:05.1]} 27. Kg1 {[%clk 0:02:01.6]} 1-0

[Event "*** Titled Tuesday Blitz"]
[Site "Chess.com"]
[Date "2018.08.07"]
[Round "7"]
[White "ozates"]
[Black "ShimanovAlex"]
[Result "0-1"]
[WhiteElo "2490"]
[BlackElo "2765"]
[TimeControl "180+2"]
[EndTime "14:29:44 PDT"]
[Termination "ShimanovAlex won by resignation"]

1. e4 {[%clk 0:02:57.1]} 1... g6 {[%clk 0:02:52.6]} 2. d4 {[%clk 0:02:57.3]}
2... Bg7 {[%clk 0:02:54.1]} 3. Nc3 {[%clk 0:02:55.8]} 3... d6 {[%clk 0:02:51.1]}
4. f4 {[%clk 0:02:56.4]} 4... Nf6 {[%clk 0:02:51.7]} 5. Nf3 {[%clk 0:02:57]}
5... O-O {[%clk 0:02:53.1]} 6. Be3 {[%clk 0:02:56.2]} 6... Nc6 {[%clk
0:02:51.8]} 7. Qd2 {[%clk 0:02:53.1]} 7... Bg4 {[%clk 0:02:47.2]} 8. Be2 {[%clk
0:02:47.8]} 8... Bxf3 {[%clk 0:02:44.1]} 9. Bxf3 {[%clk 0:02:47.9]} 9... e5
{[%clk 0:02:46]} 10. fxe5 {[%clk 0:02:43.4]} 10... dxe5 {[%clk 0:02:46.6]} 11.
d5 {[%clk 0:02:44.4]} 11... Nd4 {[%clk 0:02:48]} 12. O-O-O {[%clk 0:02:38.8]}
12... c6 {[%clk 0:02:46.7]} 13. dxc6 {[%clk 0:02:04.8]} 13... bxc6 {[%clk
0:02:41.4]} 14. Bxd4 {[%clk 0:02:01.3]} 14... exd4 {[%clk 0:02:42.3]} 15. Qxd4
{[%clk 0:02:02.3]} 15... Nd5 {[%clk 0:02:36.6]} 16. Qc4 {[%clk 0:01:52.9]} 16...
Qg5+ {[%clk 0:02:36.8]} 17. Kb1 {[%clk 0:01:43.6]} 17... Nxc3+ {[%clk
0:02:37.4]} 18. bxc3 {[%clk 0:01:45.5]} 18... Rab8+ {[%clk 0:02:38.2]} 19. Ka1
{[%clk 0:01:46.2]} 19... Qa5 {[%clk 0:02:39.7]} 20. Rd3 {[%clk 0:01:03.2]} 20...
Qa3 {[%clk 0:02:40.3]} 21. Rb1 {[%clk 0:01:00.5]} 21... Rxb1+ {[%clk 0:02:41.1]}
22. Kxb1 {[%clk 0:01:02.4]} 22... Rb8+ {[%clk 0:02:42.2]} 23. Qb3 {[%clk
0:01:03.5]} 23... Rxb3+ {[%clk 0:02:43.3]} 24. axb3 {[%clk 0:01:00.3]} 24... Be5
{[%clk 0:02:44.2]} 25. g3 {[%clk 0:00:58.6]} 25... a5 {[%clk 0:02:44.9]} 0-1

[Event "*** Titled Tuesday Blitz"]
[Site "Chess.com"]
[Date "2018.08.07"]
[Round "7"]
[White "Abrito99"]
[Black "JSMastropiero"]
[Result "1-0"]
[WhiteElo "2507"]
[BlackElo "2321"]
[TimeControl "180+2"]
[EndTime "14:29:57 PDT"]
[Termination "Abrito99 won by checkmate"]

1. e4 {[%clk 0:03:01.9]} 1... e5 {[%clk 0:02:54.7]} 2. Bc4 {[%clk 0:03:02.5]}
2... Nf6 {[%clk 0:02:54.5]} 3. d3 {[%clk 0:03:03.4]} 3... Nc6 {[%clk 0:02:54.8]}
4. Nf3 {[%clk 0:03:02.2]} 4... Be7 {[%clk 0:02:54.3]} 5. O-O {[%clk 0:03:03.7]}
5... O-O {[%clk 0:02:55.5]} 6. Re1 {[%clk 0:03:05.3]} 6... d6 {[%clk 0:02:55.5]}
7. a4 {[%clk 0:03:06.8]} 7... Kh8 {[%clk 0:02:50.7]} 8. h3 {[%clk 0:03:06.2]}
8... Ng8 {[%clk 0:02:50.7]} 9. Nc3 {[%clk 0:03:07.2]} 9... f5 {[%clk 0:02:50.2]}
10. Nd5 {[%clk 0:03:08.8]} 10... fxe4 {[%clk 0:02:37.7]} 11. dxe4 {[%clk
0:03:09.3]} 11... Nf6 {[%clk 0:02:33.7]} 12. Ng5 {[%clk 0:02:40.2]} 12... Nxd5
{[%clk 0:02:28.1]} 13. Nxh7 {[%clk 0:02:38.5]} 13... Rf4 {[%clk 0:00:54.4]} 14.
g3 {[%clk 0:02:38.4]} 14... Qe8 {[%clk 0:00:36.8]} 15. Qxd5 {[%clk 0:02:33]}
15... Rxf2 {[%clk 0:00:27.8]} 16. Kxf2 {[%clk 0:02:26.6]} 16... Kxh7 {[%clk
0:00:29]} 17. c3 {[%clk 0:02:21.2]} 17... Qg6 {[%clk 0:00:29]} 18. Qg8# {[%clk
0:02:17.3]} 1-0

[Event "*** Titled Tuesday Blitz"]
[Site "Chess.com"]
[Date "2018.08.07"]
[Round "7"]
[White "Micki-taryan"]
[Black "eljanov"]
[Result "1-0"]
[WhiteElo "2910"]
[BlackElo "2680"]
[TimeControl "180+2"]
[EndTime "14:30:01 PDT"]
[Termination "Micki-taryan won by resignation"]

1. Nf3 {[%clk 0:03:01.9]} 1... d5 {[%clk 0:03:00.2]} 2. g3 {[%clk 0:03:02.8]}
2... Bg4 {[%clk 0:03:01.2]} 3. Bg2 {[%clk 0:03:04.7]} 3... c6 {[%clk 0:03:01.1]}
4. O-O {[%clk 0:03:06.2]} 4... Nf6 {[%clk 0:03:02.1]} 5. b3 {[%clk 0:03:07.1]}
5... e6 {[%clk 0:03:00.5]} 6. Bb2 {[%clk 0:03:08.5]} 6... Nbd7 {[%clk
0:03:01.9]} 7. d3 {[%clk 0:03:09.7]} 7... a5 {[%clk 0:02:57.1]} 8. a3 {[%clk
0:03:09.2]} 8... Be7 {[%clk 0:02:50.7]} 9. e4 {[%clk 0:03:09.4]} 9... O-O {[%clk
0:02:45]} 10. Qe1 {[%clk 0:03:10.6]} 10... dxe4 {[%clk 0:02:27]} 11. dxe4 {[%clk
0:03:10.9]} 11... Qc7 {[%clk 0:02:27.8]} 12. Nbd2 {[%clk 0:03:10.6]} 12... Rfd8
{[%clk 0:02:19.9]} 13. h3 {[%clk 0:03:11.4]} 13... Bh5 {[%clk 0:02:17.5]} 14.
Nh4 {[%clk 0:02:48]} 14... Ne8 {[%clk 0:01:32.3]} 15. f4 {[%clk 0:02:47.6]}
15... Bxh4 {[%clk 0:01:33.2]} 16. gxh4 {[%clk 0:02:48.6]} 16... f6 {[%clk
0:01:32]} 17. Nc4 {[%clk 0:02:47.9]} 17... Nd6 {[%clk 0:01:29]} 18. Ne3 {[%clk
0:02:48.7]} 18... Nc5 {[%clk 0:01:22.8]} 19. Ng4 {[%clk 0:02:49.9]} 19... Bxg4
{[%clk 0:01:09.1]} 20. hxg4 {[%clk 0:02:50.7]} 20... Qb6 {[%clk 0:00:53.8]} 21.
Kh1 {[%clk 0:02:50.2]} 21... Nf7 {[%clk 0:00:39.4]} 22. g5 {[%clk 0:02:50.6]}
22... e5 {[%clk 0:00:35.6]} 23. gxf6 {[%clk 0:02:51.2]} 23... gxf6 {[%clk
0:00:36.6]} 24. fxe5 {[%clk 0:02:52.8]} 24... Nxe5 {[%clk 0:00:35.7]} 25. Rxf6
{[%clk 0:02:53.3]} 1-0

[Event "*** Titled Tuesday Blitz"]
[Site "Chess.com"]
[Date "2018.08.07"]
[Round "7"]
[White "fidetrainerNET"]
[Black "Alopekos"]
[Result "0-1"]
[WhiteElo "1917"]
[BlackElo "2450"]
[TimeControl "180+2"]
[EndTime "14:31:11 PDT"]
[Termination "Alopekos won by resignation"]

1. c4 {[%clk 0:03:01.9]} 1... e5 {[%clk 0:03:00.7]} 2. f4 {[%clk 0:02:56.1]}
2... exf4 {[%clk 0:02:47.1]} 3. Nf3 {[%clk 0:02:56.3]} 3... g5 {[%clk
0:02:48.5]} 4. Nc3 {[%clk 0:02:42.5]} 4... g4 {[%clk 0:02:47.8]} 5. d4 {[%clk
0:02:41.2]} 5... gxf3 {[%clk 0:02:22.7]} 6. Bxf4 {[%clk 0:02:41.2]} 6... fxg2
{[%clk 0:02:21.6]} 7. Bxg2 {[%clk 0:02:41.2]} 7... d6 {[%clk 0:02:06.4]} 8. Qd3
{[%clk 0:02:40.4]} 8... Bh6 {[%clk 0:02:01.7]} 9. Bxh6 {[%clk 0:02:36.4]} 9...
Nxh6 {[%clk 0:02:03.6]} 10. e4 {[%clk 0:02:34.6]} 10... Qh4+ {[%clk 0:01:42.7]}
11. Kd2 {[%clk 0:02:32.2]} 11... Qg5+ {[%clk 0:01:40]} 12. Kc2 {[%clk
0:02:26.7]} 12... Qxg2+ {[%clk 0:01:39.5]} 13. Kb3 {[%clk 0:02:27.4]} 13... Qh3
{[%clk 0:01:15.6]} 14. Qd2 {[%clk 0:02:25.3]} 14... Nc6 {[%clk 0:01:08.3]} 15.
e5 {[%clk 0:02:23]} 15... dxe5 {[%clk 0:01:01.4]} 16. Rae1 {[%clk 0:02:23.2]}
16... Nf5 {[%clk 0:00:44.4]} 17. d5 {[%clk 0:02:19.8]} 17... Ncd4+ {[%clk
0:00:42.2]} 18. Ka3 {[%clk 0:02:18]} 18... f6 {[%clk 0:00:32.7]} 19. Rhg1 {[%clk
0:02:02.3]} 19... Nf3 {[%clk 0:00:29.1]} 20. Qd3 {[%clk 0:01:46.1]} 20... Nxg1
{[%clk 0:00:29.4]} 21. Qc2 {[%clk 0:01:40]} 21... Nf3 {[%clk 0:00:26.3]} 22. Rf1
{[%clk 0:01:33.5]} 22... Qxf1 {[%clk 0:00:21.5]} 0-1

[Event "*** Titled Tuesday Blitz"]
[Site "Chess.com"]
[Date "2018.08.07"]
[Round "7"]
[White "Kislov_Oleg"]
[Black "AndrewDGreen"]
[Result "0-1"]
[WhiteElo "2360"]
[BlackElo "2194"]
[TimeControl "180+2"]
[EndTime "14:31:20 PDT"]
[Termination "AndrewDGreen won by resignation"]

1. e4 {[%clk 0:03:01.9]} 1... c5 {[%clk 0:03:00.5]} 2. Nf3 {[%clk 0:03:02.6]}
2... g6 {[%clk 0:03:01.6]} 3. c3 {[%clk 0:03:02.9]} 3... d5 {[%clk 0:03:00.3]}
4. exd5 {[%clk 0:03:02.6]} 4... Qxd5 {[%clk 0:03:02.2]} 5. d4 {[%clk 0:03:04.2]}
5... Bg7 {[%clk 0:03:02.9]} 6. dxc5 {[%clk 0:03:01.7]} 6... Qxc5 {[%clk
0:02:52.4]} 7. Be3 {[%clk 0:03:02.1]} 7... Qc7 {[%clk 0:02:48.3]} 8. Na3 {[%clk
0:03:01.3]} 8... a6 {[%clk 0:02:47.3]} 9. Nc4 {[%clk 0:03:01]} 9... Nd7 {[%clk
0:02:47.8]} 10. a4 {[%clk 0:03:00]} 10... Ngf6 {[%clk 0:02:41.1]} 11. a5 {[%clk
0:02:52.3]} 11... O-O {[%clk 0:02:39.7]} 12. h3 {[%clk 0:02:45.8]} 12... Nc5
{[%clk 0:02:21.3]} 13. Nb6 {[%clk 0:02:38.8]} 13... Rb8 {[%clk 0:02:12.7]} 14.
Nxc8 {[%clk 0:02:38.6]} 14... Rbxc8 {[%clk 0:02:13.3]} 15. Be2 {[%clk
0:02:36.4]} 15... Rfd8 {[%clk 0:02:12.3]} 16. Qc2 {[%clk 0:02:36.4]} 16... Nd5
{[%clk 0:01:51]} 17. Bd2 {[%clk 0:02:30.5]} 17... Nf4 {[%clk 0:01:46.2]} 18.
Bxf4 {[%clk 0:02:24.7]} 18... Qxf4 {[%clk 0:01:48.1]} 19. O-O {[%clk 0:02:24.5]}
19... Ne4 {[%clk 0:01:19.1]} 20. Ra4 {[%clk 0:02:21]} 20... f5 {[%clk
0:01:11.7]} 21. Nd4 {[%clk 0:02:18.2]} 21... Bxd4 {[%clk 0:00:59.6]} 22. Qb3+
{[%clk 0:02:18]} 22... Kf8 {[%clk 0:00:28.5]} 23. Rxd4 {[%clk 0:02:17.6]} 23...
Rxd4 {[%clk 0:00:20.4]} 24. cxd4 {[%clk 0:02:17.6]} 24... Nd2 {[%clk 0:00:21.5]}
25. Qxb7 {[%clk 0:02:11.8]} 25... Rb8 {[%clk 0:00:22.2]} 26. Qxa6 {[%clk
0:02:10.1]} 26... Nxf1 {[%clk 0:00:22.7]} 27. Bxf1 {[%clk 0:02:10.9]} 27... Rxb2
{[%clk 0:00:22.5]} 28. Qc8+ {[%clk 0:02:09.6]} 28... Kg7 {[%clk 0:00:22.9]} 29.
a6 {[%clk 0:02:10.1]} 29... Qxf2+ {[%clk 0:00:22.3]} 30. Kh2 {[%clk 0:02:10.2]}
30... Qxf1 {[%clk 0:00:20.4]} 31. Qc6 {[%clk 0:02:11.3]} 31... Qf4+ {[%clk
0:00:20.6]} 32. Kg1 {[%clk 0:02:10.5]} 32... Rb1+ {[%clk 0:00:21.4]} 0-1